bitfinex/quotes_ETHUSD_20251015
["timestamp","ask_amount","ask_price","bid_price","bid_amount"]
[1760517390993,1.071,4205.7,4204.5,0.48958404]
[1760517391192,3.794,4205.6,4205.0,2.37807882]
[1760517391394,3.794,4205.6,4205.1,0.2363]
[1760517392245,0.1445,4205.5,4204.2,0.7021]
[1760517395129,1.071,4204.9,4204.8,2.37823439]
[1760517395312,2.648,4204.9,4204.8,3.31968886]
[1760517396028,2.648,4204.9,4204.8,2.85388886]
[1760517396264,2.648,4204.9,4204.2,0.2363]
[1760517396265,2.648,4204.9,4204.2,0.7021]
[1760517396523,2.648,4204.9,4204.8,0.1184]
[1760517397307,0.3591,4205.6,4204.8,0.1184]
[1760517397628,3.792,4205.5,4204.2,0.7021]
[1760517398008,2.37793621,4205.4,4204.4,2.37842019]
[1760517398204,3.792,4205.5,4204.5,2.37839301]
[1760517398530,3.792,4205.5,4204.8,2.37822576]
[1760517398823,3.792,4205.5,4204.7,2.37828492]
[1760517399029,1.071,4205.4,4204.6,2.37833368]
[1760517399194,1.071,4205.4,4204.7,2.37824709]
[1760517399398,1.071,4205.4,4204.8,2.37819049]
[1760517399797,1.071,4205.4,4204.9,2.37816008]
[1760517400027,1.071,4205.4,4204.8,2.37822664]
[1760517400199,2.72,4205.3,4204.8,2.37822664]
[1760517400424,2.72,4205.3,4204.9,2.37816805]
[1760517400693,2.72,4205.3,4204.8,2.37822215]
[1760517401304,1.071,4205.8,4204.8,0.6336]
[1760517401497,1.071,4205.8,4205.7,2.37772546]
[1760517401696,4.861,4205.8,4205.2,0.2207]
[1760517401909,4.861,4205.8,4205.7,2.37772546]
[1760517402298,4.861,4205.8,4205.4,2.37784427]
[1760517402508,0.1377,4205.7,4204.2,2.61487283]
[1760517402705,2.37783854,4205.5,4204.5,2.3783868]
[1760517402923,2.37783854,4205.5,4204.2,0.2363]
[1760517402924,2.37778647,4205.6,4204.6,0.4496]
[1760517403127,2.37785101,4205.5,4204.5,2.37834962]
[1760517403540,0.4861,4205.7,4204.2,0.2363]
[1760517403701,2.94834317,4205.6,4204.4,2.37843056]
[1760517403902,2.37795047,4205.4,4204.2,0.2207]
[1760517404215,0.1377,4205.5,4204.2,0.2207]
[1760517404216,2.718,4205.3,4204.2,0.2207]
[1760517404596,3.789,4205.2,4204.0,0.2363]
[1760517404802,2.37810317,4205.1,4204.0,0.2363]
[1760517405036,2.37814514,4205.0,4204.1,2.37863038]
[1760517405236,0.3517,4204.9,4203.1,2.38117854]
[1760517405403,0.3517,4204.9,4203.2,0.2207]
[1760517405606,0.3517,4204.9,4204.0,2.37864631]
[1760517405821,0.3517,4204.9,4204.1,2.37862314]
[1760517406002,0.3517,4204.9,4204.2,2.37855948]
[1760517406199,0.57055,4205.6,4204.2,2.37855948]
[1760517406200,0.2207,4205.9,4204.8,0.2207]
[1760517406413,3.788,4205.7,4204.9,2.82772769]
[1760517406613,3.788,4205.7,4204.9,0.4496]
[1760517406934,0.3508,4206.9,4205.7,2.37772546]
[1760517406935,2.37712079,4206.8,4205.7,2.37772546]
[1760517407114,4.859,4205.8,4205.7,2.37772546]
[1760517407313,1.071,4205.8,4205.7,3.32494621]
[1760517407615,4.859,4205.8,4205.7,0.49762075]
[1760517407838,4.859,4205.8,4205.7,2.82732546]
[1760517408050,1.071,4205.8,4205.7,2.82732546]
[1760517408223,0.001,4207.3,4205.7,2.82732546]
[1760517408561,0.001,4207.3,4206.2,0.6336]
[1760517408562,3.787,4207.2,4206.2,0.6336]
[1760517408855,0.001,4207.3,4207.2,2.37687773]
[1760517409043,3.788,4207.3,4207.2,2.37687773]
[1760517409547,3.788,4207.3,4207.1,2.37692476]
[1760517409912,3.788,4207.3,4206.4,2.37732978]
[1760517409913,3.788,4207.3,4206.3,0.2207]
[1760517410128,3.788,4207.3,4206.3,0.48052533]
[1760517410328,3.9314,4207.3,4205.8,0.4496]
[1760517410537,6.30823199,4207.3,4205.8,0.4496]
[1760517410738,2.37688448,4207.2,4205.9,2.3776124]
[1760517411143,2.37698265,4207.1,4205.8,2.37766211]
[1760517411365,2.37698265,4207.1,4206.0,2.37750567]
[1760517411566,6.30827084,4207.3,4206.1,0.2207]
[1760517411567,3.786,4207.0,4206.1,0.2207]
[1760517411739,3.786,4207.0,4206.2,2.37738964]
[1760517411935,3.786,4207.0,4206.2,2.37744282]
[1760517412151,3.786,4207.0,4206.1,2.59819845]
[1760517412345,3.786,4207.0,4206.3,2.37733055]
[1760517412767,3.786,4207.0,4204.2,2.23497214]
[1760517412768,3.786,4207.0,4206.4,2.37730639]
[1760517413075,0.2208,4206.9,4206.5,2.37721714]
[1760517413242,3.785,4206.9,4206.3,2.37733708]
[1760517413448,3.785,4206.9,4206.3,2.37737831]
[1760517413866,3.785,4206.9,4205.2,2.3672]
[1760517413867,0.2181,4206.8,4205.2,2.3672]
[1760517414062,0.2181,4206.8,4205.4,0.49659431]
[1760517414378,2.37727948,4206.5,4205.5,2.37779222]
[1760517414669,0.1468,4206.5,4205.5,2.37779409]
[1760517414840,2.37734087,4206.4,4205.4,2.37788217]
[1760517415037,3.784,4206.3,4205.3,2.37795099]
[1760517415275,2.37746515,4206.2,4205.3,2.37795099]
[1760517415574,6.55451587,4206.3,4205.3,2.377939]
[1760517415877,2.3774451,4206.2,4205.3,2.377939]
[1760517416168,2.37746132,4206.2,4205.3,2.37794354]
[1760517416548,0.2181,4206.8,4206.3,2.37734079]
[1760517416750,0.2181,4206.8,4205.4,0.47097895]
[1760517416751,3.783,4206.7,4206.1,0.2175]
[1760517416970,0.001,4207.3,4206.4,2.37732906]
[1760517417180,1.071,4206.6,4206.5,2.37727326]
[1760517417366,3.783,4206.6,4206.3,2.37734196]
[1760517417673,3.783,4206.6,4206.5,0.1184]
[1760517419044,4.18297,4206.6,4206.5,0.1184]
[1760517419866,6.70838675,4206.6,4206.5,0.1184]
[1760517420262,0.39997,4206.6,4206.5,0.1184]
[1760517420475,5.01221675,4206.6,4206.5,0.1184]
[1760517420677,0.001,4207.3,4206.5,0.1184]
[1760517420678,0.001,4207.3,4207.2,3.01047773]
[1760517420849,0.0002,4207.4,4207.2,3.01047773]
[1760517420850,0.0002,4207.4,4207.3,3.01042123]
[1760517421047,2.1522,4207.4,4207.3,3.45762123]
[1760517421275,2.1522,4207.4,4207.3,8.94206223]
[1760517421478,0.0002,4207.4,4207.3,1.600844]
[1760517421678,1.1682,4207.4,4207.3,6.83690923]
[1760517421846,2.7102,4207.4,4207.3,9.97990923]
[1760517422244,0.0002,4207.4,4207.3,3.45762123]
[1760517422476,0.0002,4207.4,4207.3,7.62494123]
[1760517422677,0.0002,4207.8,4207.7,3.01019528]
[1760517422867,0.0002,4207.8,4207.7,3.54888224]
[1760517423071,0.0002,4207.8,4206.9,2.37700276]
[1760517423271,0.0002,4207.8,4207.0,0.0237699]
[1760517423588,0.0002,4207.8,4207.2,2.37684287]
[1760517423747,0.0002,4207.8,4207.7,2.59409528]
[1760517423953,0.0002,4207.8,4207.7,3.22769528]
[1760517424151,2.7092,4207.8,4207.7,4.23533224]
[1760517424364,0.0002,4207.8,4207.7,9.47894824]
[1760517424563,2.7092,4207.8,4207.7,9.47894824]
[1760517425053,0.0002,4207.8,4207.7,9.47894824]
[1760517425448,0.0002,4207.8,4207.7,17.36715924]
[1760517425651,0.001,4208.2,4208.1,14.68532038]
[1760517425853,0.001,4208.2,4208.1,6.7377193]
[1760517426054,0.001,4208.2,4208.1,5.47874238]
[1760517426248,0.001,4208.2,4208.1,6.22531038]
[1760517426454,0.001,4208.2,4208.1,3.45716938]
[1760517426682,0.001,4208.2,4207.7,0.77793696]
[1760517426850,0.001,4208.2,4208.0,0.4472]
[1760517427059,0.001,4208.2,4208.1,3.03373307]
[1760517427271,2.708,4208.2,4207.8,0.6336]
[1760517427473,2.708,4208.2,4207.9,2.37648233]
[1760517427673,2.708,4208.2,4206.7,0.4472]
[1760517427981,2.708,4208.2,4207.2,2.37683868]
[1760517428156,2.708,4208.2,4206.7,0.4472]
[1760517428157,2.707,4208.1,4207.5,2.37666659]
[1760517428483,0.001,4208.2,4207.3,0.6336]
[1760517428692,2.156,4208.1,4207.9,2.37644215]
[1760517428990,2.706,4208.0,4207.9,0.4472]
[1760517429145,2.706,4208.0,4207.9,3.01008233]
[1760517429482,0.001,4208.2,4208.0,2.37638868]
[1760517429648,2.706,4208.1,4207.3,0.6336]
[1760517429852,2.706,4208.1,4207.4,3.01035014]
[1760517430150,1.07,4208.0,4207.4,2.37676474]
[1760517430350,1.07,4208.0,4207.5,2.37670825]
[1760517430579,1.07,4208.0,4207.9,0.1184]
[1760517431556,1.2295,4208.0,4207.9,0.1184]
[1760517432173,2.53592585,4208.0,4207.9,0.1184]
[1760517432373,6.31092585,4208.0,4207.9,0.1184]
[1760517432689,4.56579259,4208.0,4207.9,0.1184]
[1760517433259,6.94221844,4208.0,4207.9,0.1184]
[1760517433491,6.94121844,4208.0,4207.9,0.1184]
[1760517433698,6.30992585,4208.0,4207.9,0.1184]
[1760517434296,0.001,4208.2,4207.9,0.1184]
[1760517434759,3.773,4208.1,4207.9,0.1184]
[1760517435073,0.001,4208.2,4207.9,0.1184]
[1760517435274,3.773,4208.0,4207.9,0.1184]
[1760517435960,0.001,4208.2,4208.1,5.50876938]
[1760517436161,0.001,4208.2,4207.9,0.1184]
[1760517436162,3.774,4208.2,4207.3,2.61481211]
[1760517436363,3.774,4208.2,4206.1,0.4358]
[1760517436364,0.1472,4208.1,4206.1,0.4358]
[1760517436699,3.774,4208.2,4206.3,2.3773433]
[1760517436700,0.2169,4207.4,4206.3,2.3773433]
[1760517436857,2.703,4207.3,4206.2,0.2299]
[1760517437065,2.8509,4207.3,4205.9,0.4358]
[1760517437395,2.8509,4207.3,4206.3,2.37734328]
[1760517437396,2.37688114,4207.2,4206.3,2.37734328]
[1760517437638,2.37694271,4207.1,4206.4,0.23773433]
[1760517437961,2.37688942,4207.2,4206.4,0.23773433]
[1760517438195,2.8509,4207.3,4206.6,2.37719394]
[1760517438507,2.703,4207.3,4206.7,0.0237716]
[1760517438664,2.703,4207.3,4207.2,2.37687773]
[1760517438997,2.703,4207.3,4207.2,0.47538521]
[1760517439360,2.703,4207.3,4207.2,3.08216294]
[1760517439566,2.703,4207.3,4207.2,4.38956294]
[1760517439999,2.703,4207.3,4207.2,4.15156294]
[1760517440297,2.703,4207.3,4207.2,3.48586294]
[1760517440795,2.703,4207.3,4207.2,12.54937894]
[1760517441101,2.703,4207.3,4207.2,11.51937894]
[1760517441266,2.703,4207.3,4207.2,2.85226294]
[1760517441485,2.703,4207.3,4207.2,2.37687773]
[1760517441717,2.703,4207.3,4207.1,2.37692254]
[1760517442286,2.703,4207.3,4207.0,2.37698658]
[1760517442519,2.703,4207.3,4207.2,2.37687773]
[1760517443999,2.703,4207.3,4207.2,3.44627773]
[1760517444328,2.703,4207.3,4207.2,3.61579246]
[1760517444684,2.703,4207.3,4207.1,0.002]
[1760517445134,0.1485,4207.2,4207.1,0.002]
[1760517445426,2.52537773,4207.2,4207.1,0.002]
[1760517446179,2.52457773,4207.2,4205.6,0.002]
[1760517446380,0.2148,4205.7,4205.6,0.002]
[1760517446711,5.29052546,4205.7,4205.6,0.002]
[1760517446909,5.29052546,4205.7,4205.6,0.1204]
[1760517447330,6.05734051,4205.7,4205.6,0.1204]
[1760517447489,6.05734051,4205.7,4205.6,0.002]
[1760517447825,2.9128,4205.7,4205.6,0.002]
[1760517448322,2.9128,4205.7,4205.6,2.379782]
[1760517448323,2.698,4205.7,4205.6,2.379782]
[1760517448487,2.698,4205.7,4205.6,3.013382]
[1760517448692,2.698,4205.7,4205.6,3.449182]
[1760517448906,2.698,4205.7,4205.6,7.227484]
[1760517449106,2.698,4205.7,4205.6,8.21101024]
[1760517449507,2.698,4205.7,4205.6,6.78575424]
[1760517449734,2.698,4205.7,4205.6,8.37774924]
[1760517449913,2.698,4205.7,4205.6,4.43270824]
[1760517450144,2.698,4205.7,4205.6,7.01181124]
[1760517450519,2.37668641,4207.6,4205.6,7.01181124]
[1760517450520,0.2148,4208.0,4205.8,5.605366]
[1760517450719,0.2148,4208.0,4205.7,0.6336]
[1760517450720,2.37660378,4207.7,4206.9,2.37703636]
[1760517451029,0.28338,4207.9,4206.5,0.6336]
[1760517451211,2.65987907,4207.9,4207.0,2.37693714]
[1760517451633,2.37655608,4207.8,4207.0,2.37696572]
[1760517451839,2.696,4207.8,4207.0,2.37696572]
[1760517452137,0.71076752,4207.7,4206.9,2.37699145]
[1760517452437,0.71076752,4207.7,4206.9,2.37699805]
[1760517453236,0.71076752,4207.7,4206.8,2.37709154]
[1760517453237,2.37666844,4207.6,4206.8,2.37709154]
[1760517453435,0.71076752,4207.7,4205.3,0.4358]
[1760517453436,0.2301,4206.9,4205.3,0.4358]
[1760517453638,2.695,4206.8,4206.2,2.37744078]
[1760517454617,2.695,4206.8,4206.0,2.37754798]
[1760517454824,2.695,4206.8,4206.1,2.37748629]
[1760517455037,2.695,4206.8,4205.4,0.2299]
[1760517455248,2.37738566,4206.4,4205.3,2.37792771]
[1760517455546,3.765,4206.3,4206.1,2.37745921]
[1760517455711,3.765,4206.3,4205.7,2.37768888]
[1760517455912,3.765,4206.3,4205.9,2.3775708]
[1760517456112,3.765,4206.3,4205.8,2.37766604]
[1760517456312,3.765,4206.3,4205.5,2.37778269]
[1760517456523,3.765,4206.3,4205.8,2.37766771]
[1760517457768,6.1423863,4206.3,4206.2,0.1184]
[1760517458060,6.1413863,4206.3,4206.2,0.1184]
[1760517458361,6.2627863,4206.3,4206.2,0.1184]
[1760517460953,6.2627863,4206.3,4205.6,0.002]
[1760517460954,2.37744282,4206.2,4205.6,0.002]
[1760517461137,0.229,4205.7,4205.6,0.002]
[1760517461456,5.29872546,4205.7,4205.6,0.002]
[1760517461632,5.42122546,4205.7,4205.6,0.002]
[1760517462249,3.0435,4205.7,4205.6,0.002]
[1760517462446,2.692,4205.7,4205.6,0.002]
[1760517462829,5.18772546,4205.7,4205.6,0.002]
[1760517464125,2.692,4205.7,4205.6,0.002]
[1760517464326,2.692,4205.7,4205.6,2.841982]
[1760517464638,2.692,4205.7,4205.6,0.002]
[1760517466058,5.18772546,4205.7,4205.6,0.002]
[1760517466229,5.96761274,4205.7,4205.6,0.002]
[1760517466547,2.692,4205.7,4205.6,0.002]
[1760517467054,2.692,4205.7,4205.6,2.379782]
[1760517467258,2.692,4205.7,4205.6,2.841982]
[1760517467851,2.692,4205.7,4205.6,2.379782]
[1760517468052,2.692,4205.7,4205.6,0.002]
[1760517469530,2.98455,4205.7,4205.6,0.002]
[1760517469729,2.78747546,4205.7,4205.6,0.002]
[1760517470348,0.29175,4205.7,4205.6,0.002]
[1760517470549,0.2335,4205.9,4205.6,0.002]
[1760517470930,2.688,4205.8,4205.6,0.002]
[1760517471554,5.06572336,4205.8,4205.6,0.002]
[1760517472262,2.688,4205.8,4205.6,0.002]
[1760517472639,2.49572546,4205.7,4205.6,0.002]
[1760517472843,3.27521295,4205.7,4205.6,0.002]
[1760517474773,0.77948749,4205.7,4205.6,0.002]
[1760517475077,2.49572546,4205.7,4205.6,0.002]
[1760517475641,2.37772546,4205.7,4205.6,0.002]
[1760517476644,2.49572546,4205.7,4205.6,0.002]
[1760517478065,5.0656797,4205.8,4205.6,0.002]
[1760517478234,2.37772546,4205.7,4205.6,0.002]
[1760517480348,3.26340958,4205.7,4205.6,0.002]
[1760517480676,3.26340958,4205.7,4202.8,0.214]
[1760517480677,2.37863038,4204.1,4202.8,0.214]
[1760517480852,2.37863038,4204.1,4202.4,0.4399]
[1760517480853,6.13263038,4204.1,4202.4,0.4399]
[1760517481175,5.19023038,4204.1,4202.4,0.4399]
[1760517481341,5.19023038,4204.1,4203.6,0.1184]
[1760517481672,5.19023038,4204.1,4202.0,0.214]
[1760517481673,2.37891331,4203.6,4202.0,0.214]
[1760517481871,13.99853831,4203.6,4202.5,0.1184]
[1760517482172,14.29786831,4203.6,4202.5,0.1184]
[1760517482359,13.16986831,4203.6,4202.5,0.1184]
[1760517482562,7.10951331,4203.6,4202.2,0.214]
[1760517482764,8.05834776,4203.6,4203.1,0.1204]
[1760517483347,8.05834776,4203.6,4203.1,0.002]
[1760517483348,6.00974776,4203.6,4203.1,0.002]
[1760517483564,6.13834776,4203.6,4203.4,0.1184]
[1760517484170,6.13834776,4203.6,4203.1,0.002]
[1760517484543,6.00974776,4203.6,4203.1,0.002]
[1760517484945,6.13834776,4203.6,4203.1,0.002]
[1760517486071,8.29955376,4203.6,4203.1,0.002]
[1760517486291,16.03204576,4203.6,4203.1,0.002]
[1760517486577,15.62023076,4203.6,4203.1,0.002]
[1760517486777,2.3791397,4203.2,4203.1,1e-08]
[1760517486957,10.98468138,4203.2,4203.1,1e-08]
[1760517487157,10.56328138,4203.2,4203.1,1e-08]
[1760517488052,20.49525038,4203.2,4203.1,1e-08]
[1760517488753,8.50447738,4203.2,4203.1,1e-08]
[1760517489587,10.50869538,4203.2,4203.1,1e-08]
[1760517489749,8.50447738,4203.2,4203.1,1e-08]
[1760517490179,10.64847738,4203.2,4203.1,1e-08]
[1760517490887,8.37587738,4203.2,4203.1,1e-08]
[1760517491243,8.50447738,4203.2,4203.1,1e-08]
[1760517492362,11.51582638,4203.2,4203.1,1e-08]
[1760517492954,14.65245538,4203.2,4203.1,1e-08]
[1760517493154,14.65165538,4203.2,4203.1,1e-08]
[1760517493777,9.84879838,4203.2,4203.1,1e-08]
[1760517493983,8.37307738,4203.2,4203.1,1e-08]
[1760517494295,5.0563397,4203.2,4203.1,1e-08]
[1760517494588,5.0571397,4203.2,4203.1,0.21680001]
[1760517494765,5.0571397,4203.2,4203.1,0.11840001]
[1760517494970,5.0571397,4203.2,4203.1,1e-08]
[1760517495795,2.677,4203.2,4203.1,0.65500001]
[1760517497566,5.0561397,4203.2,4203.1,0.65500001]
[1760517497765,2.677,4203.2,4203.1,0.65500001]
[1760517498175,5.0561397,4203.2,4203.1,0.65500001]
[1760517498861,2.677,4203.2,4203.1,0.65500001]
[1760517499192,2.677,4203.2,4203.1,3.03419631]
[1760517499506,2.677,4203.2,4203.1,3.57554558]
[1760517499676,0.115,4205.8,4203.4,2.37899732]
[1760517499677,2.377782,4205.6,4203.4,2.37899732]
[1760517500002,8.90064407,4205.9,4203.7,2.37885672]
[1760517500163,0.116,4206.3,4204.6,2.37834198]
[1760517500164,2.144,4205.6,4204.6,2.37834198]
[1760517500359,2.37799073,4205.3,4204.7,0.655]
[1760517500564,2.144,4205.6,4204.7,0.655]
[1760517500768,2.37794511,4205.4,4204.7,0.655]
[1760517501000,2.675,4205.5,4204.7,0.655]
[1760517501303,2.37808729,4205.1,4204.7,0.655]
[1760517501511,2.674,4205.0,4204.8,0.4382]
[1760517501683,2.674,4205.0,4204.0,0.2168]
[1760517501684,3.41700448,4205.0,4204.0,0.2168]
[1760517501885,3.41700448,4205.0,4204.1,0.4382]
[1760517501886,2.37824464,4204.8,4204.1,0.4382]
[1760517502083,2.37829546,4204.7,4204.1,0.4382]
[1760517502286,2.674,4204.6,4204.1,0.4382]
[1760517502803,2.674,4204.6,4204.3,2.37851723]
[1760517503003,2.674,4204.6,4204.5,2.37840409]
[1760517503193,2.674,4204.6,4204.5,3.0982645]
[1760517505572,2.674,4204.6,4204.5,3.2166645]
[1760517507331,2.671,4204.6,4204.5,3.0982645]
[1760517509923,2.671,4204.6,4204.0,2.59543388]
[1760517510092,2.671,4204.6,4204.0,0.2168]
[1760517510292,2.671,4204.6,4204.1,2.37858937]
[1760517510599,2.671,4204.6,4204.1,2.81678937]
[1760517511538,2.671,4204.6,4204.2,2.81672314]
[1760517511732,2.671,4204.6,4204.3,2.37850673]
[1760517511920,2.671,4204.6,4204.0,0.2168]
[1760517512119,2.671,4204.6,4204.0,0.655]
[1760517512325,2.671,4204.6,4204.2,2.37852827]
[1760517513035,2.671,4204.6,4204.2,2.37852557]
[1760517513236,2.671,4204.6,4204.3,2.37851338]
[1760517513599,2.671,4204.6,4204.4,0.4382]
[1760517513807,2.671,4204.6,4204.5,2.37840409]
[1760517514108,2.671,4204.6,4204.5,2.81660409]
[1760517514507,3.738,4204.6,4204.5,2.81660409]
[1760517516735,0.0002,4205.7,4205.1,2.37804142]
[1760517516931,3.44878253,4205.6,4204.9,2.37817784]
[1760517517167,1.071,4205.6,4204.5,2.81655915]
[1760517517367,3.79366891,4205.6,4205.5,0.1184]
[1760517517565,3.79366891,4205.6,4204.0,0.2168]
[1760517517566,2.37844658,4204.5,4204.0,0.2168]
[1760517517776,0.2295,4204.6,4203.6,0.4382]
[1760517517979,2.665,4204.5,4203.7,2.37885672]
[1760517518137,2.665,4204.5,4203.9,2.37873375]
[1760517519789,2.665,4204.5,4203.7,2.37885672]
[1760517519993,2.665,4204.5,4204.0,2.37868186]
[1760517520474,2.665,4204.5,4203.7,2.37885672]
[1760517520475,2.665,4204.5,4203.9,2.37872765]
[1760517520790,2.665,4204.5,4204.0,2.37868197]
[1760517520952,2.665,4204.5,4204.1,2.37862755]
[1760517521153,2.665,4204.5,4204.0,2.37868353]
[1760517521653,2.665,4204.5,4203.9,2.3787277]
[1760517522174,2.665,4204.5,4204.0,2.37868182]
[1760517522369,2.665,4204.5,4203.2,0.6336]
[1760517522683,2.665,4204.5,4203.9,2.37873081]
[1760517522885,2.665,4204.5,4203.6,2.37891032]
[1760517523484,2.665,4204.5,4203.8,2.37875589]
[1760517523683,2.37861448,4204.2,4203.1,0.21680001]
[1760517523896,0.113,4204.4,4203.5,2.3789639]
[1760517524182,2.37846066,4204.4,4203.4,2.37900912]
[1760517524482,2.37866918,4204.1,4203.4,2.37900912]
[1760517524686,5.03968878,4204.0,4203.1,2.59599624]
[1760517524900,5.03968878,4204.0,4203.2,2.37913379]
[1760517524901,2.37879149,4203.9,4203.2,2.37913379]
[1760517525188,2.661,4204.0,4203.1,0.21680001]
[1760517525684,2.37883961,4203.8,4203.1,0.21680001]
[1760517525852,2.49174354,4203.9,4203.1,1e-08]
[1760517526189,2.37892257,4203.6,4203.1,1e-08]
[1760517526396,2.661,4203.5,4203.1,1e-08]
[1760517526610,2.774,4203.5,4203.1,1e-08]
[1760517526889,2.3791397,4203.2,4203.1,1e-08]
[1760517527253,2.4921397,4203.2,4203.1,1e-08]
[1760517527584,2.4921397,4203.2,4203.1,0.11840001]
[1760517528680,2.661,4203.5,4203.1,0.11840001]
[1760517528884,2.661,4203.5,4203.4,0.1184]
[1760517531178,5.1529699,4203.5,4203.4,0.1184]
[1760517531351,2.661,4203.5,4203.4,0.1184]
[1760517532677,5.0399699,4203.5,4203.4,0.1184]
[1760517532976,2.661,4203.5,4203.4,0.1184]
[1760517533382,2.661,4203.5,4203.4,2.4974265]
[1760517533585,3.728,4203.5,4203.4,3.32153047]
[1760517533788,3.728,4203.5,4203.4,3.95513047]
[1760517534500,0.1289,4205.4,4204.7,2.37823685]
[1760517534717,1.071,4204.9,4204.7,2.37824987]
[1760517534911,1.071,4204.9,4203.7,1.0664]
[1760517535098,1.071,4204.9,4204.8,2.37823439]
[1760517535676,1.071,4204.9,4204.7,2.37828953]
[1760517535677,3.727,4204.9,4204.7,2.37828953]
[1760517536020,0.3493,4204.8,4203.4,1.14330397]
[1760517536229,0.1289,4204.7,4204.0,2.37867631]
[1760517536382,2.3783588,4204.6,4203.8,2.37875976]
[1760517536583,2.656,4204.5,4203.8,2.37875976]
[1760517536883,5.03441178,4204.5,4203.8,2.37875976]
[1760517537112,0.51633118,4204.4,4203.9,2.37874235]
[1760517537313,0.64523118,4204.4,4204.0,2.37868614]
[1760517537687,0.64523118,4204.4,4203.9,2.37873302]
[1760517537887,0.64523118,4204.4,4204.0,2.37865773]
[1760517538082,2.656,4204.5,4204.0,2.37865773]
[1760517538083,2.656,4204.5,4204.4,2.37846066]
[1760517538987,2.656,4204.5,4204.4,2.81126066]
[1760517539388,2.656,4204.5,4204.4,2.37846066]
[1760517540186,0.0202,4205.0,4204.8,2.37823439]
[1760517540423,1.071,4204.9,4204.8,2.37823439]
[1760517540716,1.071,4204.9,4204.7,2.37828501]
[1760517540913,0.3493,4204.8,4203.6,2.37891331]
[1760517541097,1.071,4204.9,4204.6,2.37833691]
[1760517541292,0.2194,4204.7,4203.3,0.6356]
[1760517541493,2.653,4204.6,4204.0,2.37863705]
[1760517541693,3.29814411,4204.6,4203.4,2.8118265]
[1760517541902,2.653,4204.6,4204.4,2.37843809]
[1760517542086,2.653,4204.6,4204.5,2.37840409]
[1760517543620,2.653,4204.6,4204.5,2.49680409]
[1760517544723,2.7819,4204.6,4203.3,0.4348]
[1760517544903,5.53266596,4204.6,4203.3,0.002]
[1760517545222,0.1289,4204.5,4203.3,0.002]
[1760517545627,9.09890289,4204.3,4203.3,0.002]
[1760517545813,2.651,4204.2,4203.3,0.002]
[1760517546124,1.17499029,4204.1,4203.3,0.002]
[1760517546327,2.37868696,4204.0,4203.3,0.002]
[1760517546506,2.37876441,4203.9,4203.3,0.002]
[1760517546711,2.65,4203.8,4203.3,0.002]
[1760517546918,5.0288188,4203.8,4203.3,0.002]
[1760517547137,2.65,4203.8,4203.3,0.002]
[1760517547301,2.65,4203.8,4203.4,2.37897805]
[1760517547508,2.7789,4203.8,4203.4,2.37897805]
[1760517547822,0.1289,4203.7,4203.3,2.38107361]
[1760517548403,0.1289,4203.6,4203.4,2.37902408]
[1760517548604,0.1289,4203.6,4203.3,0.002]
[1760517548802,2.65,4203.8,4203.3,0.002]
[1760517548803,0.1289,4203.5,4203.3,0.002]
[1760517549003,5.0280265,4203.4,4203.3,0.002]
[1760517549206,5.1569265,4203.4,4203.3,0.002]
[1760517550039,7.0769265,4203.4,4203.3,0.002]
[1760517550238,18.5032435,4203.4,4203.3,0.002]
[1760517550469,15.15268555,4203.4,4203.3,0.002]
[1760517550938,14.52337655,4203.4,4203.3,0.002]
[1760517551242,13.21726155,4203.4,4203.3,0.002]
[1760517551428,14.04532955,4203.4,4203.3,0.002]
[1760517552241,18.47650955,4203.4,4203.3,0.002]
[1760517552930,18.47650955,4203.4,4203.1,1e-08]
[1760517552931,1.92,4203.3,4203.1,1e-08]
[1760517553241,20.46562111,4203.2,4203.1,1e-08]
[1760517553440,20.59452111,4203.2,4203.1,1e-08]
[1760517553740,6.19749111,4203.2,4203.1,1e-08]
[1760517554312,9.96778411,4203.2,4203.1,1e-08]
[1760517554520,4.27749111,4203.2,4203.1,1e-08]
[1760517554718,2.5080397,4203.2,4203.1,0.11840001]
[1760517555215,2.3791397,4203.2,4203.1,0.11840001]
[1760517555415,5.0251397,4203.2,4203.1,0.11840001]
[1760517555633,2.646,4203.2,4203.1,0.11840001]
[1760517556015,5.0251397,4203.2,4203.1,0.11840001]
[1760517556215,5.765557,4203.2,4203.1,0.11840001]
[1760517556538,5.894457,4203.2,4203.1,0.11840001]
[1760517557524,0.27789,4203.6,4203.1,1e-08]
[1760517557730,2.7739,4203.5,4203.1,1e-08]
[1760517558057,2.3791397,4203.2,4203.1,1e-08]
[1760517558411,2.5080397,4203.2,4203.1,1e-08]
[1760517560147,4.6520397,4203.2,4203.1,1e-08]
[1760517560938,3.5800397,4203.2,4203.1,1e-08]
[1760517561250,5.35033661,4203.2,4203.1,1e-08]
[1760517561834,7.82153661,4203.2,4203.1,1e-08]
[1760517563229,6.40844661,4203.2,4203.1,1e-08]
[1760517563624,18.67456661,4203.2,4203.1,1e-08]
[1760517563839,16.51236461,4203.2,4203.1,1e-08]
[1760517564226,15.58231961,4203.2,4203.1,1e-08]
[1760517564435,2.37942275,4202.7,4202.6,1e-08]
[1760517564768,21.98444274,4202.7,4202.6,1e-08]
[1760517564954,22.12314274,4202.7,4202.6,1e-08]
[1760517565329,22.12314274,4202.7,4202.3,0.002]
[1760517565330,8.67599361,4202.4,4202.3,0.002]
[1760517565536,13.23699361,4202.4,4202.3,0.002]
[1760517565757,13.37569361,4202.4,4202.3,0.002]
[1760517565957,15.00105425,4202.4,4202.3,0.002]
[1760517566157,15.00105425,4202.4,4201.3,0.002]
[1760517566158,2.38015899,4201.4,4201.3,0.002]